[Event "Balkan Youth Online-ch 2020"]
[Site "Online"]
[Date "2020.10.31"]
[Round "1.63"]
[White "Stankovic, Andrea"]
[Black "Karadas, Hena"]
[Result "1-0"]
[ECO "A52"]
[WhiteElo "1534"]
[BlackElo "1191"]
[Annotator "NA RC"]
[PlyCount "65"]
[EventDate "2020.10.31"]
[EventType "swiss"]
[SourceTitle "playchess.com"]
[Source "ChessBase"]
[SourceQuality "1"]
[TimeControl "5400+30"]

1. d4 {[%emt 1:05:20]} Nf6 {[%emt 1:05:26]} 2. c4 {[%emt 0:00:23]} e5 {[%emt 0:00:23]} 3. dxe5 {[%emt 0:00:22]} Ng4 {[%emt 0:00:21]} 4. Nf3 {[%emt 0:00:22]} Bc5 {[%emt 0:00:23]} 5. e3 {[%emt 0:00:33]} Nc6 {[%emt 0:00:24]} 6. Nc3 {[%emt 0:00:43]} Ngxe5 {[%emt 0:00:25]} 7. Nxe5 {[%emt 0:00:29]} Nxe5 {[%emt 0:00:23]} 8. Be2 {[%emt 0:00:28]} O-O {[%emt 0:00:26]} 9. O-O {[%emt 0:00:24]} a5 {[%emt 0:00:29]} 10. Ne4 {[%emt 0:00:34]} Ba7 {[%emt 0:01:02]} 11. b3 {[%emt 0:00:55]} d6 {[%emt 0:00:32]} 12. Bb2 {[%emt 0:00:39]} Bf5 {[%emt 0:00:34]} 13. Ng3 {[%emt 0:00:28]} Bg6 {[%emt 0:00:25]} 14. Qd2 {[%emt 0:01:15]} Qe7 {[%emt 0:01:53]} 15. Qc3 {[%emt 0:00:41]} f6 {[%emt 0:00:53]} 16. Rad1 {[%emt 0:01:14]} Bb6 {[%emt 0:02:33]} 17. Rd2 {[%emt 0:01:18]} a4 {[%emt 0:01:02]} 18. Rfd1 {[%emt 0:01:23]} Nc6 {[%emt 0:01:02]} 19. b4 {[%emt 0:01:28]} Qf7 {[%emt 0:04:12]} 20. c5 {[%emt 0:02:02]} Nxb4 {[%emt 0:04:09]} 21. cxb6 {[%emt 0:05:46]} Nxa2 {[%emt 0:03:09]} 22. Qxc7 {[%emt 0:03:10]} Qxc7 {[%emt 0:01:31]} 23. bxc7 {[%emt 0:00:25]} Bf7 {[%emt 0:00:29]} 24. Ba3 {[%emt 0:00:43]} Nc3 {[%emt 0:01:13]} 25. Rc1 {[%emt 0:00:35]} Nxe2+ {[%emt 0:00:44]} 26. Nxe2 {[%emt 0:00:55]} Rfe8 {[%emt 0:01:27]} 27. Rxd6 {[%emt 0:00:51]} Be6 {[%emt 0:01:44]} 28. Nd4 {[%emt 0:00:33]} Bb3 {[%emt 0:00:43]} 29. Rb6 {[%emt 0:00:44]} Bd5 {[%emt 0:00:39]} 30. Nb5 {[%emt 0:00:36]} h6 {[%emt 0:00:56]} 31. Nd6 {[%emt 0:00:24]} Re6 {[%emt 0:00:26]} 32. c8=Q+ {[%emt 0:00:28]} Rxc8 {[%emt 0:00:31]} 33. Nxc8 {[%emt 0:00:51]} 1-0

[Event "Balkan Youth Online-ch 2020"]
[Site "Online"]
[Date "2020.10.31"]
[Round "1.64"]
[White "Baklova, Mila"]
[Black "Tirpan, Ceren"]
[Result "0-1"]
[ECO "C51"]
[WhiteElo "1226"]
[BlackElo "1379"]
[Annotator "NA RC"]
[PlyCount "66"]
[EventDate "2020.10.31"]
[EventType "swiss"]
[SourceTitle "playchess.com"]
[Source "ChessBase"]
[SourceQuality "1"]
[TimeControl "5400+30"]

1. e4 {[%emt 1:05:20]} e5 {[%emt 1:05:23]} 2. Nf3 {[%emt 0:00:24]} Nc6 {[%emt 0:00:23]} 3. Bc4 {[%emt 0:00:23]} Bc5 {[%emt 0:00:23]} 4. b4 {[%emt 0:00:25]} Bxb4 {[%emt 0:00:24]} 5. c3 {[%emt 0:00:21]} Be7 {[%emt 0:00:30]} 6. d4 {[%emt 0:00:42]} exd4 {[%emt 0:00:22]} 7. cxd4 {[%emt 0:00:48]} d6 {[%emt 0:00:24]} 8. Qb3 {[%emt 0:01:15]} Na5 {[%emt 0:00:25]} 9. Bxf7+ {[%emt 0:00:40]} Kf8 {[%emt 0:00:25]} 10. Qd5 {[%emt 0:00:34]} c6 {[%emt 0:00:46]} 11. Qh5 {[%emt 0:01:10]} Nf6 {[%emt 0:00:46]} 12. Qh4 {[%emt 0:00:45]} Kxf7 {[%emt 0:00:27]} 13. Ng5+ {[%emt 0:00:31]} Ke8 {[%emt 0:01:18]} 14. O-O {[%emt 0:02:32]} h5 {[%emt 0:02:03]} 15. Nc3 {[%emt 0:01:52]} g6 {[%emt 0:01:00]} 16. f3 {[%emt 0:01:24]} Nh7 {[%emt 0:00:51]} 17. f4 {[%emt 0:01:18]} Rf8 {[%emt 0:00:38]} 18. Qg3 {[%emt 0:00:31]} Nxg5 {[%emt 0:00:30]} 19. fxg5 {[%emt 0:00:46]} Rxf1+ {[%emt 0:00:27]} 20. Kxf1 {[%emt 0:00:21]} Be6 {[%emt 0:00:24]} 21. Ba3 {[%emt 0:02:01]} Nc4 {[%emt 0:00:26]} 22. Bb4 {[%emt 0:00:43]} a5 {[%emt 0:00:26]} 23. Bxd6 {[%emt 0:01:01]} Qxd6 {[%emt 0:00:24]} 24. Qd3 {[%emt 0:00:43]} Qf4+ {[%emt 0:00:28]} 25. Kg1 {[%emt 0:00:24]} Bxg5 {[%emt 0:00:25]} 26. Qc2 {[%emt 0:01:01]} Qe3+ {[%emt 0:00:25]} 27. Kh1 {[%emt 0:00:25]} Rd8 {[%emt 0:00:41]} 28. d5 {[%emt 0:00:59]} Bg4 {[%emt 0:00:51]} 29. Rf1 {[%emt 0:01:49]} Nd2 {[%emt 0:00:44]} 30. Rg1 {[%emt 0:01:28]} Bf6 {[%emt 0:01:33]} 31. Nd1 {[%emt 0:01:18]} Bxd1 {[%emt 0:00:33]} 32. Qxd1 {[%emt 0:00:26]} Nxe4 {[%emt 0:00:34]} 33. Qb1 {[%emt 0:01:30]} Nf2# {[%emt 0:00:54]} 0-1

[Event "Balkan Youth Online-ch 2020"]
[Site "Online"]
[Date "2020.10.31"]
[Round "1.65"]
[White "Rasheva, Nora"]
[Black "Christodoulou, Georgia"]
[Result "0-1"]
[ECO "D56"]
[WhiteElo "1588"]
[BlackElo "1373"]
[Annotator "NA RC"]
[PlyCount "136"]
[EventDate "2020.10.31"]
[EventType "swiss"]
[SourceTitle "playchess.com"]
[Source "ChessBase"]
[SourceQuality "1"]
[TimeControl "5400+30"]

1. d4 {[%emt 1:05:20]} d5 {[%emt 1:05:34]} 2. Nf3 {[%emt 0:00:23]} Nf6 {[%emt 0:00:23]} 3. c4 {[%emt 0:00:23]} e6 {[%emt 0:00:30]} 4. Nc3 {[%emt 0:00:23]} Be7 {[%emt 0:00:32]} 5. Bg5 {[%emt 0:00:28]} O-O {[%emt 0:00:32]} 6. e3 {[%emt 0:00:25]} h6 {[%emt 0:00:26]} 7. Bh4 {[%emt 0:00:27]} c5 {[%emt 0:00:37]} 8. cxd5 {[%emt 0:01:26]} exd5 {[%emt 0:00:30]} 9. dxc5 {[%emt 0:01:13]} g5 {[%emt 0:01:41]} 10. Bg3 {[%emt 0:01:00]} Bxc5 {[%emt 0:01:45]} 11. Be5 {[%emt 0:01:08]} Be6 {[%emt 0:01:21]} 12. Bd4 {[%emt 0:02:15]} Bxd4 {[%emt 0:00:45]} 13. Nxd4 {[%emt 0:00:26]} Nc6 {[%emt 0:00:28]} 14. Be2 {[%emt 0:01:08]} Qb6 {[%emt 0:01:17]} 15. Qd2 {[%emt 0:03:40]} Nxd4 {[%emt 0:01:22]} 16. exd4 {[%emt 0:00:49]} Ne4 {[%emt 0:01:59]} 17. Nxe4 {[%emt 0:00:54]} dxe4 {[%emt 0:00:26]} 18. O-O {[%emt 0:01:04]} Rfd8 {[%emt 0:01:16]} 19. Rfd1 {[%emt 0:00:37]} Rd6 {[%emt 0:00:48]} 20. Qe3 {[%emt 0:01:37]} Bf5 {[%emt 0:01:50]} 21. Rd2 {[%emt 0:00:37]} Rad8 {[%emt 0:00:54]} 22. Rad1 {[%emt 0:00:34]} Bg6 {[%emt 0:01:07]} 23. g4 {[%emt 0:00:49]} f6 {[%emt 0:01:52]} 24. Bc4+ {[%emt 0:00:44]} Kg7 {[%emt 0:00:32]} 25. Bb3 {[%emt 0:00:39]} h5 {[%emt 0:00:42]} 26. h3 {[%emt 0:00:32]} hxg4 {[%emt 0:01:41]} 27. hxg4 {[%emt 0:00:23]} Qc7 {[%emt 0:01:04]} 28. Bc2 {[%emt 0:00:46]} Qd7 {[%emt 0:00:54]} 29. Qe2 {[%emt 0:01:42]} f5 {[%emt 0:01:21]} 30. gxf5 {[%emt 0:04:15]} Qxf5 {[%emt 0:00:39]} 31. Qe3 {[%emt 0:01:29]} Qg4+ {[%emt 0:01:01]} 32. Qg3 {[%emt 0:01:46]} Qxg3+ {[%emt 0:00:40]} 33. fxg3 {[%emt 0:00:23]} e3 {[%emt 0:00:27]} 34. Rh2 {[%emt 0:01:30]} Rxd4 {[%emt 0:00:45]} 35. Re1 {[%emt 0:00:48]} Bxc2 {[%emt 0:01:56]} 36. Rxc2 {[%emt 0:00:28]} Rd1 {[%emt 0:03:25]} 37. Kf1 {[%emt 0:01:35]} Rxe1+ {[%emt 0:02:00]} 38. Kxe1 {[%emt 0:00:23]} Rd7 {[%emt 0:00:23]} 39. Ke2 {[%emt 0:00:22]} Re7 {[%emt 0:02:33]} 40. Kf3 {[%emt 0:02:07]} Kf6 {[%emt 0:00:37]} 41. Re2 {[%emt 0:00:59]} Kf5 {[%emt 0:00:45]} 42. g4+ {[%emt 0:00:26]} Kf6 {[%emt 0:00:37]} 43. b3 {[%emt 0:00:40]} Re5 {[%emt 0:00:35]} 44. Rc2 {[%emt 0:00:53]} e2 {[%emt 0:00:26]} 45. Rxe2 {[%emt 0:00:23]} Rxe2 {[%emt 0:00:22]} 46. Kxe2 {[%emt 0:00:21]} Ke5 {[%emt 0:00:22]} 47. Ke3 {[%emt 0:00:22]} b6 {[%emt 0:00:27]} 48. a3 {[%emt 0:01:41]} a6 {[%emt 0:00:27]} 49. b4 {[%emt 0:01:01]} b5 {[%emt 0:00:25]} 50. Kd3 {[%emt 0:00:25]} Kf4 {[%emt 0:00:24]} 51. Kd4 {[%emt 0:00:22]} Kxg4 {[%emt 0:00:23]} 52. Kc5 {[%emt 0:00:21]} Kh3 {[%emt 0:00:23]} 53. Kb6 {[%emt 0:00:22]} g4 {[%emt 0:00:21]} 54. Kxa6 {[%emt 0:00:21]} g3 {[%emt 0:00:21]} 55. Kxb5 {[%emt 0:00:21]} g2 {[%emt 0:00:21]} 56. a4 {[%emt 0:00:25]} g1=Q {[%emt 0:00:23]} 57. a5 {[%emt 0:00:25]} Qa7 {[%emt 0:00:25]} 58. a6 {[%emt 0:00:23]} Kg4 {[%emt 0:00:24]} 59. Ka5 {[%emt 0:00:24]} Qc7+ {[%emt 0:00:30]} 60. Ka4 {[%emt 0:00:24]} Qb6 {[%emt 0:00:25]} 61. b5 {[%emt 0:00:22]} Kf5 {[%emt 0:00:22]} 62. Kb4 {[%emt 0:00:22]} Ke5 {[%emt 0:00:21]} 63. Ka4 {[%emt 0:00:29]} Kd5 {[%emt 0:00:21]} 64. Kb4 {[%emt 0:00:21]} Kd4 {[%emt 0:00:23]} 65. a7 {[%emt 0:00:39]} Qxa7 {[%emt 0:00:25]} 66. b6 {[%emt 0:00:25]} Qxb6+ {[%emt 0:00:22]} 67. Ka4 {[%emt 0:00:21]} Kc3 {[%emt 0:00:23]} 68. Ka3 {[%emt 0:00:23]} Qb3# {[%emt 0:00:22]} 0-1

[Event "Balkan Youth Online-ch 2020"]
[Site "Online"]
[Date "2020.10.31"]
[Round "1.67"]
[White "Criveanu, Maria"]
[Black "Davitkova, Jovana"]
[Result "1-0"]
[ECO "B22"]
[WhiteElo "1054"]
[BlackElo "1227"]
[Annotator "NA RC"]
[PlyCount "45"]
[EventDate "2020.10.31"]
[EventType "swiss"]
[SourceTitle "playchess.com"]
[Source "ChessBase"]
[SourceQuality "1"]
[TimeControl "5400+30"]

1. e4 {[%emt 1:05:20]} c5 {[%emt 1:05:25]} 2. Nf3 {[%emt 0:00:23]} d6 {[%emt 0:00:25]} 3. c3 {[%emt 0:00:24]} Nc6 {[%emt 0:00:27]} 4. d4 {[%emt 0:00:36]} cxd4 {[%emt 0:00:26]} 5. cxd4 {[%emt 0:00:23]} e6 {[%emt 0:00:26]} 6. Nc3 {[%emt 0:00:34]} Nf6 {[%emt 0:00:36]} 7. Bb5 {[%emt 0:00:48]} Bd7 {[%emt 0:00:26]} 8. O-O {[%emt 0:01:02]} Be7 {[%emt 0:00:44]} 9. d5 {[%emt 0:01:07]} exd5 {[%emt 0:00:30]} 10. exd5 {[%emt 0:00:25]} Ne5 {[%emt 0:00:30]} 11. Nxe5 {[%emt 0:01:05]} dxe5 {[%emt 0:00:42]} 12. d6 {[%emt 0:00:49]} Bf8 {[%emt 0:00:41]} 13. Re1 {[%emt 0:01:07]} Bxb5 {[%emt 0:02:24]} 14. Rxe5+ {[%emt 0:01:12]} Kd7 {[%emt 0:00:46]} 15. Nxb5 {[%emt 0:00:36]} a6 {[%emt 0:01:01]} 16. Qf3 {[%emt 0:02:04]} Rb8 {[%emt 0:01:05]} 17. Qf5+ {[%emt 0:03:41]} Kc6 {[%emt 0:00:52]} 18. Be3 {[%emt 0:01:47]} Bxd6 {[%emt 0:01:36]} 19. Rc1+ {[%emt 0:00:34]} Bc5 {[%emt 0:00:36]} 20. Rexc5+ {[%emt 0:00:48]} Kb6 {[%emt 0:00:39]} 21. R5c4+ {[%emt 0:00:48]} Ka5 {[%emt 0:00:29]} 22. Nc3+ {[%emt 0:00:43]} b5 {[%emt 0:00:32]} 23. Ra4# {[%emt 0:00:25]} 1-0

[Event "Balkan Youth Online-ch 2020"]
[Site "Online"]
[Date "2020.10.31"]
[Round "1.68"]
[White "Vaupot, Eliza"]
[Black "Pirvan, Maria"]
[Result "0-1"]
[ECO "B23"]
[WhiteElo "1198"]
[BlackElo "1484"]
[Annotator "NA RC"]
[PlyCount "114"]
[EventDate "2020.10.31"]
[EventType "swiss"]
[SourceTitle "playchess.com"]
[Source "ChessBase"]
[SourceQuality "1"]
[TimeControl "5400+30"]

1. e4 {[%emt 1:05:20]} c5 {[%emt 1:05:24]} 2. Nc3 {[%emt 0:00:27]} e6 {[%emt 0:00:52]} 3. f4 {[%emt 0:00:25]} d5 {[%emt 0:00:27]} 4. d3 {[%emt 0:00:51]} Nc6 {[%emt 0:01:22]} 5. Nf3 {[%emt 0:00:57]} Nf6 {[%emt 0:00:55]} 6. g3 {[%emt 0:01:06]} Be7 {[%emt 0:02:49]} 7. Bg2 {[%emt 0:00:55]} O-O {[%emt 0:03:26]} 8. O-O {[%emt 0:01:15]} Qb6 {[%emt 0:01:10]} 9. Kh1 {[%emt 0:04:03]} Rd8 {[%emt 0:00:39]} 10. e5 {[%emt 0:02:39]} Nd7 {[%emt 0:01:02]} 11. Qe2 {[%emt 0:02:08]} f6 {[%emt 0:01:57]} 12. Bh3 {[%emt 0:03:45]} Nf8 {[%emt 0:02:08]} 13. b3 {[%emt 0:07:43]} f5 {[%emt 0:03:39]} 14. Rg1 {[%emt 0:02:06]} Ng6 {[%emt 0:03:51]} 15. g4 {[%emt 0:01:02]} Kh8 {[%emt 0:01:45]} 16. gxf5 {[%emt 0:01:04]} exf5 {[%emt 0:00:29]} 17. Ng5 {[%emt 0:00:51]} Bxg5 {[%emt 0:01:57]} 18. Rxg5 {[%emt 0:00:24]} Nce7 {[%emt 0:01:02]} 19. Qh5 {[%emt 0:00:37]} Rf8 {[%emt 0:01:56]} 20. Nd1 {[%emt 0:00:59]} d4 {[%emt 0:00:59]} 21. Nf2 {[%emt 0:00:56]} Kg8 {[%emt 0:01:25]} 22. Ba3 {[%emt 0:00:34]} h6 {[%emt 0:01:17]} 23. Rg3 {[%emt 0:00:24]} Kh7 {[%emt 0:00:25]} 24. Bc1 {[%emt 0:00:36]} Qc6+ {[%emt 0:00:36]} 25. Bg2 {[%emt 0:00:23]} Qe6 {[%emt 0:00:25]} 26. Bh3 {[%emt 0:00:32]} Qf7 {[%emt 0:00:38]} 27. Bd2 {[%emt 0:00:24]} Be6 {[%emt 0:00:33]} 28. Re1 {[%emt 0:00:26]} Bd5+ {[%emt 0:00:23]} 29. Kg1 {[%emt 0:00:23]} Be6 {[%emt 0:00:36]} 30. Kh1 {[%emt 0:00:34]} Rad8 {[%emt 0:00:31]} 31. Reg1 {[%emt 0:00:26]} Bd5+ {[%emt 0:00:22]} 32. Bg2 {[%emt 0:00:24]} Bxg2+ {[%emt 0:00:30]} 33. R1xg2 {[%emt 0:00:23]} Rc8 {[%emt 0:00:29]} 34. Nh3 {[%emt 0:00:38]} Kg8 {[%emt 0:00:42]} 35. a4 {[%emt 0:00:48]} Rc6 {[%emt 0:00:25]} 36. Re2 {[%emt 0:00:45]} Re6 {[%emt 0:00:33]} 37. Re1 {[%emt 0:00:42]} b6 {[%emt 0:00:31]} 38. Re2 {[%emt 0:00:27]} Nh8 {[%emt 0:00:32]} 39. Qxf7+ {[%emt 0:00:23]} Rxf7 {[%emt 0:00:29]} 40. Reg2 {[%emt 0:00:35]} Nhg6 {[%emt 0:00:26]} 41. Nf2 {[%emt 0:00:35]} Kh7 {[%emt 0:00:34]} 42. Kg1 {[%emt 0:00:48]} Nd5 {[%emt 0:00:26]} 43. Nh3 {[%emt 0:00:32]} Nh4 {[%emt 0:00:35]} 44. Rf2 {[%emt 0:00:29]} a6 {[%emt 0:00:30]} 45. Kf1 {[%emt 0:00:32]} b5 {[%emt 0:00:25]} 46. axb5 {[%emt 0:00:22]} axb5 {[%emt 0:00:21]} 47. Ke2 {[%emt 0:00:26]} b4 {[%emt 0:00:41]} 48. Rg1 {[%emt 0:00:23]} Ra7 {[%emt 0:00:29]} 49. Rff1 {[%emt 0:00:37]} Rea6 {[%emt 0:00:33]} 50. Rc1 {[%emt 0:00:35]} Ra2 {[%emt 0:00:24]} 51. Nf2 {[%emt 0:00:36]} Nc3+ {[%emt 0:00:35]} 52. Bxc3 {[%emt 0:00:24]} bxc3 {[%emt 0:00:24]} 53. h3 {[%emt 0:00:38]} Ng6 {[%emt 0:00:35]} 54. Kd1 {[%emt 0:00:31]} Nxf4 {[%emt 0:00:24]} 55. Rg3 {[%emt 0:00:27]} Ra1 {[%emt 0:00:29]} 56. Rf3 {[%emt 0:00:28]} Rxc1+ {[%emt 0:00:23]} 57. Kxc1 {[%emt 0:00:23]} Ra1# {[%emt 0:00:22]} 0-1

[Event "Balkan Youth Online-ch 2020"]
[Site "Online"]
[Date "2020.10.31"]
[Round "1.71"]
[White "Zhezhovska, Monika"]
[Black "Omeri, Eklea"]
[Result "1/2-1/2"]
[ECO "E30"]
[WhiteElo "1108"]
[BlackElo "1070"]
[Annotator "NA RC"]
[PlyCount "70"]
[EventDate "2020.10.31"]
[EventType "swiss"]
[SourceTitle "playchess.com"]
[Source "ChessBase"]
[SourceQuality "1"]
[TimeControl "5400+30"]

1. d4 {[%emt 1:05:20]} d5 {[%emt 1:05:24]} 2. c4 {[%emt 0:00:24]} e6 {[%emt 0:00:26]} 3. Nc3 {[%emt 0:00:23]} Nf6 {[%emt 0:00:23]} 4. Bg5 {[%emt 0:00:23]} Bb4 {[%emt 0:00:39]} 5. e3 {[%emt 0:00:35]} h6 {[%emt 0:00:29]} 6. Bh4 {[%emt 0:00:22]} O-O {[%emt 0:00:32]} 7. cxd5 {[%emt 0:00:24]} exd5 {[%emt 0:00:32]} 8. Nf3 {[%emt 0:00:25]} Bg4 {[%emt 0:00:24]} 9. Be2 {[%emt 0:00:24]} Bxf3 {[%emt 0:00:36]} 10. Bxf3 {[%emt 0:00:24]} c6 {[%emt 0:00:24]} 11. O-O {[%emt 0:00:23]} Nbd7 {[%emt 0:00:34]} 12. Qb3 {[%emt 0:00:25]} Bxc3 {[%emt 0:00:29]} 13. bxc3 {[%emt 0:00:22]} b5 {[%emt 0:01:27]} 14. a4 {[%emt 0:00:26]} a6 {[%emt 0:00:30]} 15. axb5 {[%emt 0:00:46]} axb5 {[%emt 0:00:27]} 16. Be2 {[%emt 0:01:23]} Qb6 {[%emt 0:01:29]} 17. Bxf6 {[%emt 0:00:47]} Nxf6 {[%emt 0:00:23]} 18. c4 {[%emt 0:00:23]} dxc4 {[%emt 0:01:13]} 19. Bxc4 {[%emt 0:00:22]} Qc7 {[%emt 0:01:55]} 20. Bd3 {[%emt 0:00:32]} Ng4 {[%emt 0:00:55]} 21. g3 {[%emt 0:00:34]} Qd6 {[%emt 0:02:15]} 22. Rxa8 {[%emt 0:00:29]} Rxa8 {[%emt 0:00:26]} 23. h3 {[%emt 0:00:37]} Nf6 {[%emt 0:00:29]} 24. Rc1 {[%emt 0:00:57]} Nd5 {[%emt 0:04:00]} 25. Rc5 {[%emt 0:00:51]} Nxe3 {[%emt 0:01:24]} 26. fxe3 {[%emt 0:00:52]} Qxg3+ {[%emt 0:00:26]} 27. Kf1 {[%emt 0:00:25]} Ra1+ {[%emt 0:00:22]} 28. Bb1 {[%emt 0:00:29]} Qxh3+ {[%emt 0:00:39]} 29. Ke2 {[%emt 0:00:25]} Qg2+ {[%emt 0:00:26]} 30. Kd1 {[%emt 0:00:30]} Qf1+ {[%emt 0:00:26]} 31. Kc2 {[%emt 0:00:36]} Qe2+ {[%emt 0:00:31]} 32. Kc1 {[%emt 0:00:25]} Qe1+ {[%emt 0:01:34]} 33. Kc2 {[%emt 0:00:24]} Qe2+ {[%emt 0:00:24]} 34. Kc1 {[%emt 0:00:23]} Qe1+ {[%emt 0:00:22]} 35. Kc2 {[%emt 0:00:23]} Qe2+ {[%emt 0:00:22]} 1/2-1/2

[Event "Balkan Youth Online-ch 2020"]
[Site "Online"]
[Date "2020.10.31"]
[Round "1.73"]
[White "Chicarosie, Ioana-Bianca"]
[Black "Mihelic, Vesna"]
[Result "0-1"]
[ECO "D05"]
[WhiteElo "1521"]
[BlackElo "1872"]
[Annotator "NA RC"]
[PlyCount "66"]
[EventDate "2020.10.31"]
[EventType "swiss"]
[SourceTitle "playchess.com"]
[Source "ChessBase"]
[SourceQuality "1"]
[TimeControl "5400+30"]

1. d4 {[%emt 1:05:20]} d5 {[%emt 1:05:23]} 2. Nf3 {[%emt 0:00:23]} Nf6 {[%emt 0:00:25]} 3. e3 {[%emt 0:00:23]} e6 {[%emt 0:00:23]} 4. Bd3 {[%emt 0:00:25]} c5 {[%emt 0:00:24]} 5. c3 {[%emt 0:00:23]} Nc6 {[%emt 0:00:24]} 6. Nbd2 {[%emt 0:00:25]} Be7 {[%emt 0:00:29]} 7. O-O {[%emt 0:00:22]} O-O {[%emt 0:00:23]} 8. dxc5 {[%emt 0:00:53]} Bxc5 {[%emt 0:00:25]} 9. e4 {[%emt 0:00:23]} e5 {[%emt 0:01:13]} 10. Qc2 {[%emt 0:01:12] D05: Colle System with ...e6.} h6 {[%emt 0:00:42]} 11. exd5 {[%emt 0:01:54]} Nxd5 {[%emt 0:00:38] [#]} 12. b4 $146 {[%emt 0:01:28]} ({Predecessor:} 12. Nb3 Bd6 13. Rd1 Nf6 14. Nbd2 Bb8 15. Ne4 Nxe4 16. Bxe4 Qe7 17. Bf5 Bc7 18. Qe4 {1-0 (49) Piket,M (2350)-Bertholee,R (2355) Netherlands 1996}) 12... Bxb4 {[%emt 0:02:48]} 13. cxb4 {[%emt 0:01:14]} Ndxb4 {[%emt 0:00:25]} 14. Bh7+ {[%emt 0:00:31]} Kh8 {[%emt 0:00:23]} 15. Qb1 {[%emt 0:00:48]} f5 {[%emt 0:00:43]} 16. Bg6 {[%emt 0:00:39]} Qf6 {[%emt 0:01:38]} 17. Ba3 {[%emt 0:01:06]} a5 {[%emt 0:00:45]} 18. Nc4 {[%emt 0:00:55]} e4 {[%emt 0:02:39]} 19. Nfe5 {[%emt 0:02:07]} Nxe5 {[%emt 0:00:39]} 20. Nxe5 {[%emt 0:00:28]} Qxe5 {[%emt 0:00:51]} 21. Bxb4 {[%emt 0:00:35]} axb4 {[%emt 0:00:31]} 22. Qxb4 {[%emt 0:00:25]} Rf6 {[%emt 0:00:53]} 23. Bh5 {[%emt 0:00:35]} f4 {[%emt 0:00:49]} 24. Be2 {[%emt 0:00:50]} f3 {[%emt 0:00:49]} 25. Bc4 {[%emt 0:01:08]} Bh3 {[%emt 0:03:43]} 26. g3 {[%emt 0:02:35]} Bxf1 {[%emt 0:00:38]} 27. Rxf1 {[%emt 0:00:26]} b6 {[%emt 0:01:38]} 28. Rd1 {[%emt 0:00:47]} e3 {[%emt 0:00:50]} 29. Qe1 {[%emt 0:02:08]} e2 {[%emt 0:01:28]} 30. Rd5 {[%emt 0:00:35]} Qe6 {[%emt 0:01:41]} 31. Kh1 {[%emt 0:01:26] [#]} Qh3 $1 {[%emt 0:00:35]} 32. Qg1 {[%emt 0:00:38]} e1=Q {[%emt 0:00:31]} 33. Bf1 {[%emt 0:00:52]} Qhxf1 {[%emt 0:00:40]} 0-1

[Event "Balkan Youth Online-ch 2020"]
[Site "Online"]
[Date "2020.10.31"]
[Round "1.74"]
[White "Puia, Alexia-Teodora"]
[Black "Tsakona, Maria"]
[Result "0-1"]
[ECO "D02"]
[WhiteElo "1697"]
[BlackElo "1596"]
[Annotator "NA RC"]
[PlyCount "46"]
[EventDate "2020.10.31"]
[EventType "swiss"]
[SourceTitle "playchess.com"]
[Source "ChessBase"]
[SourceQuality "1"]
[TimeControl "5400+30"]

1. d4 {[%emt 1:05:20]} Nf6 {[%emt 1:05:23]} 2. Bf4 {[%emt 0:00:29]} e6 {[%emt 0:00:23]} 3. e3 {[%emt 0:00:22]} c5 {[%emt 0:00:32]} 4. c3 {[%emt 0:00:23]} d5 {[%emt 0:00:25]} 5. Bd3 {[%emt 0:00:22]} Bd6 {[%emt 0:00:24]} 6. Bg3 {[%emt 0:00:22]} Qc7 {[%emt 0:00:25]} 7. Nf3 {[%emt 0:00:42]} Nbd7 {[%emt 0:00:29]} 8. Nbd2 {[%emt 0:00:55]} O-O {[%emt 0:00:30]} 9. O-O {[%emt 0:01:14]} Bxg3 {[%emt 0:00:35]} 10. hxg3 {[%emt 0:00:23]} e5 {[%emt 0:00:22]} 11. e4 {[%emt 0:00:59]} dxe4 {[%emt 0:04:48]} 12. Nxe4 {[%emt 0:00:26]} Nxe4 {[%emt 0:00:23]} 13. Bxe4 {[%emt 0:00:23]} Nf6 {[%emt 0:00:21]} 14. Bb1 {[%emt 0:01:49]} e4 {[%emt 0:00:55]} 15. Ne5 {[%emt 0:00:53]} Rd8 {[%emt 0:01:04]} 16. Re1 {[%emt 0:01:05]} cxd4 {[%emt 0:01:31]} 17. cxd4 {[%emt 0:00:25]} Qb6 {[%emt 0:01:31]} 18. Bxe4 {[%emt 0:02:02]} Rxd4 {[%emt 0:00:43]} 19. Qc2 {[%emt 0:02:38]} Nxe4 {[%emt 0:01:50]} 20. Rxe4 {[%emt 0:00:25]} Bf5 {[%emt 0:00:31]} 21. Rae1 {[%emt 0:01:57]} Rad8 {[%emt 0:01:23]} 22. Nc6 {[%emt 0:05:33]} Rxe4 {[%emt 0:01:49]} 23. Rxe4 {[%emt 0:03:13]} bxc6 {[%emt 0:00:40]} 0-1

[Event "Balkan Youth Online-ch 2020"]
[Site "Online"]
[Date "2020.10.31"]
[Round "1.77"]
[White "Zrmanovska, Mihaela"]
[Black "Kipik, Feyza"]
[Result "0-1"]
[ECO "B75"]
[WhiteElo "1300"]
[BlackElo "1592"]
[Annotator "NA RC"]
[PlyCount "70"]
[EventDate "2020.10.31"]
[EventType "swiss"]
[SourceTitle "playchess.com"]
[Source "ChessBase"]
[SourceQuality "1"]
[TimeControl "5400+30"]

1. e4 {[%emt 1:05:20]} c5 {[%emt 1:05:26]} 2. Nf3 {[%emt 0:00:24]} d6 {[%emt 0:00:24]} 3. d4 {[%emt 0:00:24]} cxd4 {[%emt 0:00:26]} 4. Nxd4 {[%emt 0:00:23]} Nf6 {[%emt 0:00:25]} 5. Nc3 {[%emt 0:00:30]} g6 {[%emt 0:00:26]} 6. Be3 {[%emt 0:00:30]} Bg7 {[%emt 0:00:28]} 7. f3 {[%emt 0:00:39]} a6 {[%emt 0:00:45]} 8. Qd2 {[%emt 0:00:31]} h5 {[%emt 0:00:30]} 9. O-O-O {[%emt 0:02:07]} b5 {[%emt 0:00:45]} 10. Be2 {[%emt 0:02:22]} Bb7 {[%emt 0:00:48]} 11. h3 {[%emt 0:02:06]} Nbd7 {[%emt 0:04:14]} 12. g4 {[%emt 0:02:15]} Ne5 {[%emt 0:03:22]} 13. g5 {[%emt 0:06:29]} Nfd7 {[%emt 0:00:36]} 14. f4 {[%emt 0:00:43]} Nc4 {[%emt 0:01:49]} 15. Bxc4 {[%emt 0:01:24]} bxc4 {[%emt 0:00:23]} 16. Rhf1 {[%emt 0:04:42]} Nc5 {[%emt 0:02:10]} 17. Qe2 {[%emt 0:05:26]} Qa5 {[%emt 0:07:37]} 18. Qxc4 {[%emt 0:02:02]} Rc8 {[%emt 0:01:35]} 19. Qe2 {[%emt 0:00:45]} Nxe4 {[%emt 0:01:12]} 20. Nxe4 {[%emt 0:00:35]} Bxe4 {[%emt 0:00:24]} 21. Kb1 {[%emt 0:00:31]} Bxd4 {[%emt 0:04:09]} 22. Bxd4 {[%emt 0:00:33]} Bxc2+ {[%emt 0:00:25]} 23. Qxc2 {[%emt 0:00:32]} Rxc2 {[%emt 0:00:25]} 24. Kxc2 {[%emt 0:00:27]} O-O {[%emt 0:00:27]} 25. Kb1 {[%emt 0:00:30]} Qf5+ {[%emt 0:00:36]} 26. Ka1 {[%emt 0:00:28]} Qxh3 {[%emt 0:00:28]} 27. Rfe1 {[%emt 0:00:35]} Re8 {[%emt 0:01:09]} 28. Bf6 {[%emt 0:00:27]} Qd7 {[%emt 0:00:37]} 29. Re2 {[%emt 0:00:34]} exf6 {[%emt 0:00:31]} 30. Rg2 {[%emt 0:00:32]} f5 {[%emt 0:00:36]} 31. Rgd2 {[%emt 0:00:28]} Re6 {[%emt 0:00:49]} 32. Rd3 {[%emt 0:00:26]} Kg7 {[%emt 0:00:45]} 33. Ra3 {[%emt 0:00:29]} Qb5 {[%emt 0:00:47]} 34. Rb3 {[%emt 0:00:27]} Qc4 {[%emt 0:00:33]} 35. Rf3 {[%emt 0:00:39]} d5 {[%emt 0:00:34]} 0-1